Cogmind - Beta 10.2 @@@ ROGUE MODE // 2020.12.14 @ 22:09:51 // Halloween2020/ForbiddenLore Player: WayneKnight Result: Self-destructed Performance ------------- Evolutions (5) 2500 Regions Visited (15) 3000 Robots Destroyed (168) 840 Value Destroyed (5830) 5830 Prototype IDs (36) 720 Alien Tech Used (0) 0 Bonus (2031) 2031 TOTAL SCORE: 14921 Bonus ------- High Alert Combat Kills 204 Follower Combat Kills 286 Entered Garrisons 400 Used RIF Installer 1000 Aligned with FarCom 300 Friendly Fire -159 Cogmind --------- Core Integrity 842/1000 Matter 298/300 Energy 164/170 System Corruption 4% Temperature Cool (6) Movement Flying (37) Location -5/Factory Parts ------- > --- POWER (2) -------- Micro Fission Core > --- PROPULSION (6) --- Nuclear Pulse Array Nuclear Pulse Array > --- UTILITY (7) ------ High-capacity Storage Unit Advanced Signal Interpreter Hacking Suite System Shield > --- WEAPON (2) ------- Power Sword > --- INVENTORY (12) --- Light Fission Core Large Storage Unit Damper Plating System Backup Module Trap Reconfigurator Heavy Missile Launcher Force Lance Peak State ------------ > --- POWER ------------ Micro Nuclear Core Micro Fission Core > --- PROPULSION ------- Nuclear Pulse Array Nuclear Pulse Array Nuclear Pulse Array > --- UTILITY ---------- High-capacity Storage Unit Advanced Signal Interpreter Improved Transmission Jammer Improved Propulsion Shielding Layered Light Armor Plating Hacking Suite System Shield > --- WEAPON ----------- Greatsword > --- INVENTORY -------- Nuclear Pulse Array Large Storage Unit High-capacity Storage Unit Advanced Signal Interpreter Hacking Suite Dynamic Insulation System System Backup Module Trap Reconfigurator Heavy Missile Launcher Improved Datajack Power Sword [Rating: 80] Favorites ----------- Power Micro Nuclear Core Engine Improved Ion Engine Power Core Micro Nuclear Core Propulsion Armored Treads Treads Armored Treads Leg Improved Aluminum Leg Hover Unit Antigrav System Flight Unit Nuclear Pulse Array Utility High-capacity Storage Unit Device Improved Sensor Array Storage High-capacity Storage Unit Processor Advanced Signal Interpreter Hackware Hacking Suite Protection Layered Light Armor Plating Weapon Flak Gun Energy Gun EM Shotgun Ballistic Gun Flak Gun Ballistic Cannon Gauss Cannon Launcher Rocket Launcher Slashing Weapon Greatsword Build | -11 -10 -10 -10 -9 -8 -8 -8 -7 -7 -7 -7 -6 -5 -5 -5 ------- Run | Scr Mat Min Exi Min Mat Gar Mat Fac Gar Fac Sto Fac Fac Was Fac Slots Evolved 10 | . . . . . 4 . . 2 . . . 2 2 . . Power 1 | . . . . . . . . . . . . . 1 . . Propulsion 4 | . . . . . 1 . . 1 . . . 1 1 . . Utility 5 | . . . . . 3 . . 1 . . . 1 . . . Weapon . | . . . . . . . . . . . . . . . . Parts Attached 146 | 3 7 . . 2 31 2 6 21 3 12 37 9 8 2 3 Power 11 | . 1 . . 1 2 . 2 . . 1 2 1 1 . . Engine 5 | . 1 . . 1 2 . 1 . . . . . . . . Core 6 | . . . . . . . 1 . . 1 2 1 1 . . Reactor . | . . . . . . . . . . . . . . . . Propulsion 41 | 2 . . . . 17 . 1 2 1 . 12 1 4 . 1 Treads 19 | 2 . . . . 8 . 1 2 1 . 5 . . . . Leg 9 | . . . . . 9 . . . . . . . . . . Wheel . | . . . . . . . . . . . . . . . . Hover 9 | . . . . . . . . . . . 7 1 1 . . Flight 4 | . . . . . . . . . . . . . 3 . 1 Utility 45 | 1 4 . . . 3 . 1 9 1 5 13 3 2 2 1 Device 19 | . . . . . . . . 6 . 3 7 2 . . 1 Storage 9 | 1 4 . . . 2 . . 1 . . 1 . . . . Processor 3 | . . . . . 1 . 1 1 . . . . . . . Hackware 3 | . . . . . . . . . . . 1 . 1 1 . Protection 11 | . . . . . . . . 1 1 2 4 1 1 1 . Artifact . | . . . . . . . . . . . . . . . . Weapon 49 | . 2 . . 1 9 2 2 10 1 6 10 4 1 . 1 Energy Gun 1 | . . . . . 1 . . . . . . . . . . Energy Cannon . | . . . . . . . . . . . . . . . . Ballistic Gun 30 | . 2 . . . 7 2 2 6 1 4 5 1 . . . Ballistic Cannon 4 | . . . . . 1 . . . . . 2 1 . . . Launcher 2 | . . . . 1 . . . 1 . . . . . . . Special Weapon . | . . . . . . . . . . . . . . . . Impact Weapon . | . . . . . . . . . . . . . . . . Slashing Weapon 12 | . . . . . . . . 3 . 2 3 2 1 . 1 Piercing Weapon . | . . . . . . . . . . . . . . . . Special Melee Weapon . | . . . . . . . . . . . . . . . . Unidentified Prototypes 3 | . . . . . . . 1 . . . 2 . . . . Parts Lost 32 | . . . . 1 12 . . 2 2 1 5 . 1 . 8 Power 5 | . . . . 1 2 . . . 1 . . . . . 1 Propulsion 13 | . . . . . 5 . . 1 1 . 4 . . . 2 Utility 7 | . . . . . . . . . . 1 1 . 1 . 4 Weapon 7 | . . . . . 5 . . 1 . . . . . . 1 Highest Loss Streak 4 | . . . . 1 4 . . 1 1 1 2 . 1 . 4 Average Slot Usage (%) 95 | . 100 100 100 99 92 100 99 96 87 96 95 94 79 73 73 Engine 5 | . 14 14 14 13 6 9 7 . . . . . . . . Core 3 | . . . . . . . 1 7 2 7 6 5 8 11 10 Treads 22 | . 28 28 28 28 14 27 26 29 30 30 23 . . . . Leg 1 | . . . . . 11 . . . . . . . . . . Hover 3 | . . . . . . . . . . . 6 33 20 . . Device 2 | . . . . . . . . 6 . 4 7 14 9 2 . Storage 29 | . 28 28 28 28 36 36 36 30 30 30 27 13 9 5 5 Processor 5 | . . . . . 4 9 9 6 7 7 7 6 5 5 5 Hackware 1 | . . . . . . . . . . . 1 6 6 14 15 Protection 1 | . . . . . . . . . 6 2 1 4 3 8 9 Ballistic Gun 13 | . 28 28 28 23 13 12 18 8 7 11 6 1 . . . Ballistic Cannon 1 | . . . . . 4 5 . . . . 1 1 . . . Slashing Weapon 1 | . . . . . . . . 2 . 1 2 4 4 5 5 Naked Turns . | . . . . . . . . . . . . . . . . Heaviest Build 172 | 15 77 77 77 78 148 148 145 149 151 151 172 87 82 55 54 Greatest Support 88 | 40 40 40 40 40 60 60 60 80 80 80 88 58 80 60 60 Greatest Overweight (x) 7 | . 1 1 1 1 7 2 2 1 1 1 5 1 4 . . Average Overweight (x) 1 | . . 1 1 1 2 2 2 1 1 1 1 1 . . . Largest Inventory Capacity 44 | 8 20 20 20 20 36 36 36 36 36 36 44 20 20 12 12 Average Capacity 29 | 6 15 20 20 20 35 36 36 36 36 36 32 20 17 12 12 Most Carried 36 | 6 19 20 20 20 35 36 36 36 35 36 36 20 20 12 12 Average Carried 26 | 6 14 19 19 19 22 34 35 33 32 33 31 18 16 11 11 Final Capacity 36 | 8 20 20 20 20 36 36 36 36 36 36 20 20 12 12 12 Final Carried 36 | 6 19 20 20 19 34 36 36 33 32 36 20 18 12 12 9 Class Distribution -------------------- 89% | Hauler-Mutant 5% | Mutant 5% | Hacker-Mutant Dominant Class ---------------- Mutant | -10/Materials Hauler-Mutant | -10/Mines Hauler-Mutant | -10/Exiles Hauler-Mutant | -9/Mines Hauler-Mutant | -8/Materials Hauler-Mutant | -8/Garrison Hauler-Mutant | -8/Materials Hauler-Mutant | -7/Factory Hauler-Mutant | -7/Garrison Hauler-Mutant | -7/Factory Hauler-Mutant | -7/Storage Hauler-Mutant | -6/Factory Hauler-Mutant | -5/Factory Hacker-Mutant | -5/Waste Hacker-Mutant | -5/Factory Resources | -11 -10 -10 -10 -9 -8 -8 -8 -7 -7 -7 -7 -6 -5 -5 -5 ----------- Run | Scr Mat Min Exi Min Mat Gar Mat Fac Gar Fac Sto Fac Fac Was Fac Matter Collected 4475 | 248 166 56 . 100 906 232 757 380 209 262 964 31 123 31 10 Remotely . | . . . . . . . . . . . . . . . . Salvage Created 7068 | 85 183 . . 248 1409 432 1269 380 827 376 1400 31 123 . 305 Parts 384 | 1 17 . . 17 69 28 77 27 36 17 71 1 9 . 14 Haulers Intercepted 9 | . . . . . 2 . 3 . . . 4 . . . . Recyclers Shooed 1 | . . . . . 1 . . . . . . . . . . Parts Field Recycled . | . . . . . . . . . . . . . . . . Retrieved Matter . | . . . . . . . . . . . . . . . . Parts Self-Destructed . | . . . . . . . . . . . . . . . . Prevented . | . . . . . . . . . . . . . . . . Kills | -11 -10 -10 -10 -9 -8 -8 -8 -7 -7 -7 -7 -6 -5 -5 -5 ------- Run | Scr Mat Min Exi Min Mat Gar Mat Fac Gar Fac Sto Fac Fac Was Fac Combat Hostiles Destroyed 132 | . 5 . . 10 20 13 22 11 17 6 22 . 4 . 2 Melee 9 | . . . . . 1 . . . . . 2 . 4 . 2 Guns 108 | . 5 . . 7 19 4 22 11 17 6 17 . . . . Cannons 12 | . . . . . . 9 . . . . 3 . . . . AOE 3 | . . . . 3 . . . . . . . . . . . Classes Destroyed 13 | 1 3 . . . 6 1 1 1 . . . . . . . Worker 2 | . . . . . 1 . 1 . . . . . . . . Builder 2 | . . . . . 1 . 1 . . . . . . . . Hauler 9 | . . . . . 2 . 3 . . . 4 . . . . Recycler 8 | 1 . . . . 4 . 1 . . . 1 . . . 1 Operator 2 | . . . . . . . 1 . . 1 . . . . . Watcher 12 | . 2 . . . 4 . 1 . . . 1 1 1 . 2 Swarmer 37 | . 3 . . 7 3 4 5 7 4 . . . 4 . . Grunt 46 | . 2 . . 4 8 6 5 . 7 3 11 . . . . Brawler 2 | . . . . . . 1 . . . 1 . . . . . Duelist 7 | . . . . . 2 . 2 . 2 . 1 . . . . Sentry 26 | . . . . . 4 2 9 1 3 1 6 . . . . Hunter 6 | . . . . . 3 . 1 . 1 . 1 . . . . Programmer 9 | . . . . . . . . 3 . 1 3 . . . 2 Best Kill Streak 10 | 1 3 . . 4 4 7 4 4 10 2 4 1 4 . 2 Combat Bots Only 10 | . 3 . . 4 4 7 4 4 10 2 4 . 4 . 1 Max Kills in Single Turn 2 | 1 2 . . 2 2 2 1 1 1 2 2 1 1 . 1 Gunslinging 1 | . 1 . . . . . . . . 1 . . . . . Exploded 2 | . . . . 2 . . . . . . . . . . . Melee 1 | . . . . . 1 . . . . . 1 . 1 . 1 Uniques/NPCs Destroyed . | . . . . . . . . . . . . . . . . Combat | -11 -10 -10 -10 -9 -8 -8 -8 -7 -7 -7 -7 -6 -5 -5 -5 -------- Run | Scr Mat Min Exi Min Mat Gar Mat Fac Gar Fac Sto Fac Fac Was Fac Damage Taken 7936 | . 248 . . 281 1728 224 765 944 559 389 1592 147 201 . 858 Core 790 | . 27 . . 37 179 6 64 155 26 20 118 . 59 . 99 Absorbed by Shields . | . . . . . . . . . . . . . . . . Core Remaining (%) 76 | 100 . . . 74 . . 54 . . . 54 100 . . . Volleys Fired 327 | 3 17 . . 15 103 21 62 38 . 14 54 . . . . Largest 2 | 2 2 . . 2 2 2 2 2 . 2 2 . . . . Hottest 76 | 40 46 . . 46 76 76 56 56 . 56 76 . . . . Shots Fired 758 | 6 34 . . 27 204 42 124 73 78 40 130 . . . . Gun 684 | 6 34 . . 24 186 21 124 72 78 40 99 . . . . Cannon 70 | . . . . . 18 21 . . . . 31 . . . . Launcher 4 | . . . . 3 . . . 1 . . . . . . . Special . | . . . . . . . . . . . . . . . . Kinetic 748 | 6 34 . . 24 198 42 124 72 78 40 130 . . . . Thermal . | . . . . . . . . . . . . . . . . Explosive 4 | . . . . 3 . . . 1 . . . . . . . Electromagnetic 6 | . . . . . 6 . . . . . . . . . . Robot Hit Streak 21 | 2 6 . . 5 16 14 14 16 21 9 16 . . . . Robot Miss Streak 8 | 3 2 . . 2 3 4 7 8 1 4 5 . . . . Penetration Max 1 | . . . . . 1 1 . . . . 1 . . . . Secondary Targets 12 | . 2 . . 1 4 . 1 1 . 2 1 . . . . Max Gunslinging Chain 1 | . 1 . . 1 1 . 1 1 . 1 1 . . . . Autonomous 113 | . . . . . . . . . 78 12 23 . . . . Shots Hit Robots 643 | 3 21 . . 18 147 31 112 63 71 37 109 2 10 . 19 Core Hits 405 | 2 8 . . 13 62 19 108 41 27 38 76 1 5 . 5 Critical Hits 11 | . . . . 2 2 1 . 1 . . 5 . . . . Critical Kills 4 | . . . . . 2 . . . . . 2 . . . . Critical Parts Destroyed 7 | . . . . 2 . 1 . 1 . . 3 . . . . Melee Attacks 106 | . . . . . . . . 6 . . 24 17 22 . 37 Impact . | . . . . . . . . . . . . . . . . Slashing 106 | . . . . . . . . 6 . . 24 17 22 . 37 Piercing . | . . . . . . . . . . . . . . . . Sneak Attacks 3 | . . . . . . . . . . . 1 . . . 2 Combat Hostiles . | . . . . . . . . . . . . . . . . Follow-up Attacks . | . . . . . . . . . . . . . . . . Damage Inflicted 14863 | 35 341 . . 575 2365 918 1830 951 1997 999 3080 104 596 . 1072 Guns 10894 | 35 341 . . 283 2079 506 1790 910 1997 999 1954 . . . . Cannons 1185 | . . . . . 195 412 . . . . 578 . . . . Explosions 296 | . . . . 223 32 . . 41 . . . . . . . Melee 2320 | . . . . . . . . . . . 548 104 596 . 1072 Ramming 168 | . . . . 69 59 . 40 . . . . . . . . Kinetic 11992 | 35 341 . . 283 2187 918 1790 910 1997 999 2532 . . . . Thermal 32 | . . . . . 32 . . . . . . . . . . Explosive 264 | . . . . 223 . . . 41 . . . . . . . Electromagnetic 87 | . . . . . 87 . . . . . . . . . . Impact . | . . . . . . . . . . . . . . . . Slashing 2320 | . . . . . . . . . . . 548 104 596 . 1072 Piercing . | . . . . . . . . . . . . . . . . Highest Corruption 5 | . . . . . . . 1 3 3 3 5 1 . . 4 Average Corruption 2 | . . . . . . . 1 1 3 3 3 1 . . 3 Corruption Purged . | . . . . . . . . . . . . . . . . Effects 91 | . . . . . . . 12 7 8 21 38 . . . 5 Message Errors 32 | . . . . . . . 8 1 3 11 9 . . . . Matter Fused 15 | . . . . . . . . 1 1 3 8 . . . 2 Heat Flow Errors 11 | . . . . . . . . . 4 2 4 . . . 1 Energy Discharges 14 | . . . . . . . 3 3 . 3 4 . . . 1 Parts Rejected 1 | . . . . . . . . . . . 1 . . . . Data Loss (minor) 9 | . . . . . . . 1 1 . 1 6 . . . . Targeting Errors 8 | . . . . . . . . . . 1 6 . . . 1 Weapon Failures 1 | . . . . . . . . 1 . . . . . . . Overload Shots . | . . . . . . . . . . . . . . . . Overflow Damage 553 | . . . . 12 12 . . . . . 110 19 142 . 258 Projectiles 18 | . . . . . . . . . . . 18 . . . . Explosions 12 | . . . . 12 . . . . . . . . . . . Melee 523 | . . . . . 12 . . . . . 92 19 142 . 258 Knockbacks 7 | . . . . 1 3 1 . . . . 2 . . . . Impact 1 | . . . . 1 . . . . . . . . . . . Kinetic 6 | . . . . . 3 1 . . . . 2 . . . . Secondary . | . . . . . . . . . . . . . . . . Self-Inflicted Damage 103 | . . . . 68 35 . . . . . . . . . . Shots 4 | . . . . 3 1 . . . . . . . . . . Rammed 14 | . . . . 11 2 . 1 . . . . . . . . Targets Rammed 17 | . . . . 11 4 . 2 . . . . . . . . Kicked 2 | . . . . . 2 . . . . . . . . . . Crushed 1 | . . . . . . . 1 . . . . . . . . Highest Temperature 453 | . 14 . . 7 18 45 453 9 262 172 271 . 35 . 256 Average Temperature 59 | . 6 . . 3 9 24 130 6 121 66 47 . 19 . 112 Received Heat Transfer 1491 | . 54 . . 39 432 72 162 30 141 138 387 27 . . 9 Effects 1 | . . . . . . . 1 . . . . . . . . Matter Decay 1 | . . . . . . . 1 . . . . . . . . Siege Activations . | . . . . . . . . . . . . . . . . Robots Corrupted . | . . . . . . . . . . . . . . . . Combat Hostiles . | . . . . . . . . . . . . . . . . Parts Fried 5 | . . . . . 5 . . . . . . . . . . Impact Corruptions 1 | . . . . . 1 . . . . . . . . . . Robots Melted . | . . . . . . . . . . . . . . . . Combat Hostiles . | . . . . . . . . . . . . . . . . Parts Melted 1 | . . . . 1 . . . . . . . . . . . Heat Transferred 50 | . . . . . 50 . . . . . . . . . . Parts Sabotaged . | . . . . . . . . . . . . . . . . Parts Stolen . | . . . . . . . . . . . . . . . . Parts Stripped . | . . . . . . . . . . . . . . . . Power Chain Reactions 1 | . . . . . 1 . . . . . . . . . . Missiles Intercepted . | . . . . . . . . . . . . . . . . Alert | -11 -10 -10 -10 -9 -8 -8 -8 -7 -7 -7 -7 -6 -5 -5 -5 ------- Run | Scr Mat Min Exi Min Mat Gar Mat Fac Gar Fac Sto Fac Fac Was Fac Peak Influence 665 | 5 120 13 . 254 172 573 379 551 665 448 371 187 106 130 407 Initial 348 | . 3 13 . . . 63 278 172 282 348 116 168 1 37 82 Average 203 | 4 48 5 . 100 81 393 247 343 595 323 242 87 25 89 196 Maximum Alert Level 2 | . . . . 1 . 2 1 2 2 2 1 . . . 2 Low Security (%) 54 | 100 100 100 . 78 100 22 27 23 . 1 30 100 100 100 62 Level 1 33 | . . . . 21 . 15 72 23 16 84 69 . . . 36 Level 2 12 | . . . . . . 61 . 53 83 13 . . . . 1 Level 3 . | . . . . . . . . . . . . . . . . Level 4 . | . . . . . . . . . . . . . . . . Level 5 . | . . . . . . . . . . . . . . . . High Security . | . . . . . . . . . . . . . . . . Max Security . | . . . . . . . . . . . . . . . . Squads Dispatched 17 | . 1 . . . 2 . 3 3 . 1 5 1 . . 1 Investigation 4 | . . . . . 1 . 2 . . . 1 . . . . Extermination 5 | . . . . . . . . 2 . 1 2 . . . . Reinforcement 8 | . 1 . . . 1 . 1 1 . . 2 1 . . 1 Assault . | . . . . . . . . . . . . . . . . Garrison . | . . . . . . . . . . . . . . . . Intercept . | . . . . . . . . . . . . . . . . Construction Impeded 1 | . . . . . 1 . . . . . . . . . . Haulers Reinforced 1 | . . . . . . . . . . . 1 . . . . Stealth | -11 -10 -10 -10 -9 -8 -8 -8 -7 -7 -7 -7 -6 -5 -5 -5 --------- Run | Scr Mat Min Exi Min Mat Gar Mat Fac Gar Fac Sto Fac Fac Was Fac Distress Signals 16 | . 1 . . . 6 . 5 . . . 2 . . . 2 Communications Jammed . | . . . . . . . . . . . . . . . . Distress Signals . | . . . . . . . . . . . . . . . . Times Spotted 223 | . 13 . . 13 36 11 37 17 13 9 31 8 9 2 24 Peak Tracking Total 12 | . 4 . . 4 6 4 3 4 3 3 4 3 5 2 12 Tactical Retreats 14 | . 1 . . . 2 . 1 1 . 1 2 . . . 6 Traps | -11 -10 -10 -10 -9 -8 -8 -8 -7 -7 -7 -7 -6 -5 -5 -5 ------- Run | Scr Mat Min Exi Min Mat Gar Mat Fac Gar Fac Sto Fac Fac Was Fac Traps Triggered 21 | . . . . . 2 4 3 . 6 . 2 2 1 . 1 Indirectly . | . . . . . . . . . . . . . . . . Trap Hack Attempts . | . . . . . . . . . . . . . . . . Triggered . | . . . . . . . . . . . . . . . . Disarmed . | . . . . . . . . . . . . . . . . Reprogrammed . | . . . . . . . . . . . . . . . . Reused . | . . . . . . . . . . . . . . . . Traps Extracted . | . . . . . . . . . . . . . . . . Installed . | . . . . . . . . . . . . . . . . Triggered . | . . . . . . . . . . . . . . . . Machines | -11 -10 -10 -10 -9 -8 -8 -8 -7 -7 -7 -7 -6 -5 -5 -5 ---------- Run | Scr Mat Min Exi Min Mat Gar Mat Fac Gar Fac Sto Fac Fac Was Fac Machines Disabled 12 | . . . . 1 . 1 2 2 2 . 4 . . . . Max in Single Turn 2 | . . . . 1 . 1 . 2 1 . 1 . . . . Garrison Access 5 | . . . . . . . . . . 1 1 2 . . 1 Machines Sabotaged . | . . . . . . . . . . . . . . . . Garrisons Compromised . | . . . . . . . . . . . . . . . . Overloaded Fab Kills . | . . . . . . . . . . . . . . . . Fab Network Shutdowns 1 | . . . . . . . . 1 . . . . . . . Hacking | -11 -10 -10 -10 -9 -8 -8 -8 -7 -7 -7 -7 -6 -5 -5 -5 --------- Run | Scr Mat Min Exi Min Mat Gar Mat Fac Gar Fac Sto Fac Fac Was Fac Machines Accessed 68 | . 9 . 2 1 10 . 12 5 . 4 9 6 4 . 6 Terminals 46 | . 7 . . 1 7 . 9 2 . 3 8 3 3 . 3 Fabricators 2 | . . . . . . . . 1 . . . . . . 1 Repair Stations 4 | . . . . . 1 . 1 1 . . . 1 . . . Recycling Units 4 | . 2 . . . . . . . . . . . 1 . 1 Scanalyzers 3 | . . . . . 1 . 2 . . . . . . . . Garrison Access 7 | . . . . . 1 . . 1 . 1 1 2 . . 1 Total Hacks 208 | . 33 . 2 5 28 . 51 11 . 6 24 9 19 . 20 Successful 120 | . 18 . 2 3 18 . 33 5 . 4 9 5 13 . 10 Failed 86 | . 14 . . 2 9 . 18 6 . 2 15 4 6 . 10 Catastrophic 5 | . 1 . . . . . 1 1 . . 1 . 1 . . Database Lockouts 2 | . 1 . . . 1 . . . . . . . . . . Manual 126 | . 21 . 1 3 14 . 29 3 . 5 14 5 18 . 13 Terminals 157 | . 28 . . 5 23 . 35 4 . 5 23 5 18 . 11 Fabricators 11 | . . . . . . . . 4 . . . . . . 7 Repair Stations 10 | . . . . . 2 . 4 2 . . . 2 . . . Recycling Units 7 | . 5 . . . . . . . . . . . 1 . 1 Scanalyzers 14 | . . . . . 2 . 12 . . . . . . . . Garrison Access 7 | . . . . . 1 . . 1 . 1 1 2 . . 1 Terminal Hacks 39 | . 7 . 2 2 7 . 8 . . . 5 . 8 . . Record 1 | . . . 1 . . . . . . . . . . . . Part Schematic 3 | . . . . . . . 1 . . . 1 . 1 . . Robot Analysis 9 | . 1 . . 1 1 . 1 . . . . . 5 . . Prototype ID Bank 5 | . 2 . . . 1 . 1 . . . 1 . . . . Open Door 1 | . . . . . . . . . . . 1 . . . . Branch Access Points 1 | . . . . . . . 1 . . . . . . . . Unreport Threat 1 | . . . . . . . 1 . . . . . . . . Locate Traps 8 | . 2 . . . 2 . 1 . . . 2 . 1 . . Hauler Manifests 1 | . 1 . . . . . . . . . . . . . . Registered Components 1 | . . . . . 1 . . . . . . . . . . Zone Layout 7 | . 1 . . 1 2 . 2 . . . . . 1 . . EX-Prototype ID Bank 1 | . . . 1 . . . . . . . . . . . . Fabricator Hacks 5 | . . . . . . . . 3 . . . . . . 2 Network Status 1 | . . . . . . . . 1 . . . . . . . Load Schematic 2 | . . . . . . . . 1 . . . . . . 1 Build 2 | . . . . . . . . 1 . . . . . . 1 Repair Station Hacks 8 | . . . . . 1 . 4 1 . . . 2 . . . Scan Component 5 | . . . . . 1 . 2 1 . . . 1 . . . Repair 3 | . . . . . . . 2 . . . . 1 . . . Recycling Unit Hacks 6 | . 4 . . . . . . . . . . . 1 . 1 Report Inventory 4 | . 2 . . . . . . . . . . . 1 . 1 Retrieve Components 2 | . 2 . . . . . . . . . . . . . . Scanalyzer 14 | . . . . . 2 . 12 . . . . . . . . Insert Component 6 | . . . . . 1 . 5 . . . . . . . . Analyze 8 | . . . . . 1 . 7 . . . . . . . . Garrison Access Hacks 7 | . . . . . 1 . . 1 . 1 1 2 . . 1 Unlock Access 2 | . . . . . 1 . . 1 . . . . . . . Seal Access 5 | . . . . . . . . . . 1 1 2 . . 1 Unauthorized Hacks 41 | . 7 . . 1 7 . 9 . . 3 3 1 4 . 6 Terminals 39 | . 7 . . 1 7 . 9 . . 3 3 1 4 . 4 Track 13 | . 2 . . 1 3 . 2 . . 1 1 . 1 . 2 Assimilate 2 | . 1 . . . . . . . . . . . . . 1 Botnet 23 | . 4 . . . 4 . 6 . . 2 2 1 3 . 1 Operators 1 | . . . . . . . 1 . . . . . . . . Fabricators 2 | . . . . . . . . . . . . . . . 2 Prioritize 1 | . . . . . . . . . . . . . . . 1 Siphon 1 | . . . . . . . . . . . . . . . 1 Repair Stations . | . . . . . . . . . . . . . . . . Recycling Units . | . . . . . . . . . . . . . . . . Scanalyzers . | . . . . . . . . . . . . . . . . Garrison Access . | . . . . . . . . . . . . . . . . Data Cores Recovered 1 | . . . . . . . . . . 1 . . . . . Used . | . . . . . . . . . . . . . . . . Hacking Detections 56 | . 9 . . 1 8 . 11 5 . 3 8 3 4 . 4 Full Trace Events 5 | . 2 . . . 1 . 1 . . . 1 . . . . Feedback Events . | . . . . . . . . . . . . . . . . Feedback Blocked . | . . . . . . . . . . . . . . . . Robot Schematics Acquired . | . . . . . . . . . . . . . . . . Robots Built . | . . . . . . . . . . . . . . . . Matter . | . . . . . . . . . . . . . . . . Time . | . . . . . . . . . . . . . . . . Total Robot Build Rating . | . . . . . . . . . . . . . . . . Part Schematics Acquired 7 | . . . . . 1 . 5 . . . 1 . . . . Parts Built 2 | . . . . . . . . 1 . . . . . . 1 Matter 314 | . . . . . . . . 146 . . . . . . 168 Time 157 | . . . . . . . . 73 . . . . . . 84 Total Part Build Rating 7 | . . . . . . . . 3 . . . . . . 4 Parts Repaired 3 | . . . . . . . 2 . . . . 1 . . . Time 114 | . . . . . . . 70 . . . . 44 . . . Parts Recycled . | . . . . . . . . . . . . . . . . Recycled Matter . | . . . . . . . . . . . . . . . . Retrieved Matter . | . . . . . . . . . . . . . . . . Retrieved Components 10 | . 10 . . . . . . . . . . . . . . Parts Scanalyzed 6 | . . . . . 1 . 5 . . . . . . . . Part Schematics Acquired 5 | . . . . . 1 . 4 . . . . . . . . Parts Damaged . | . . . . . . . . . . . . . . . . Bothacking | -11 -10 -10 -10 -9 -8 -8 -8 -7 -7 -7 -7 -6 -5 -5 -5 ------------ Run | Scr Mat Min Exi Min Mat Gar Mat Fac Gar Fac Sto Fac Fac Was Fac Used RIF Installer 2 | . . . . . . 1 . . 1 . . . . . . Hotswap 1 | . . . . . . . . . 1 . . . . . . Robots Hacked . | . . . . . . . . . . . . . . . . Non-combat . | . . . . . . . . . . . . . . . . Combat . | . . . . . . . . . . . . . . . . Robot Hacks Applied . | . . . . . . . . . . . . . . . . Relay Couplers Released 3 | . . . . . . . . . . . 3 . . . . Programmers 3 | . . . . . . . . . . . 3 . . . . Robots Rewired 3 | . . . . . . 3 . . . . . . . . . Allies Hacked . | . . . . . . . . . . . . . . . . Hacks Repelled . | . . . . . . . . . . . . . . . . Allies | -11 -10 -10 -10 -9 -8 -8 -8 -7 -7 -7 -7 -6 -5 -5 -5 -------- Run | Scr Mat Min Exi Min Mat Gar Mat Fac Gar Fac Sto Fac Fac Was Fac Total Allies 26 | . . 3 . . . 3 . . . . . . . 19 1 Largest Group 19 | . . 3 3 3 . 3 3 . . . . . . 19 2 Highest-Rated Group 696 | . . 40 40 40 . 114 114 . . . . . . 696 51 Highest-Rated Ally 50 | . . 16 16 16 . 38 38 . . . . . . 50 26 Total Orders . | . . . . . . . . . . . . . . . . Ally Attacks 133 | . . . . 15 . . 16 . . . . . . 96 6 Total Damage 5482 | . . . . 189 . . 333 . . . . . . 4890 70 Kills 18 | . . . . 3 . . 4 . . . . . . 10 1 Allies Corrupted . | . . . . . . . . . . . . . . . . Allies Melted . | . . . . . . . . . . . . . . . . Intel | -11 -10 -10 -10 -9 -8 -8 -8 -7 -7 -7 -7 -6 -5 -5 -5 ------- Run | Scr Mat Min Exi Min Mat Gar Mat Fac Gar Fac Sto Fac Fac Was Fac Robot Analysis Total 9 | . 1 . . 1 1 . 1 . . . . . 5 . . Derelict Logs Recovered 2 | . . 1 . 1 . . . . . . . . . . . Drone Launches . | . . . . . . . . . . . . . . . . Drone Recoveries . | . . . . . . . . . . . . . . . . Exploration | -11 -10 -10 -10 -9 -8 -8 -8 -7 -7 -7 -7 -6 -5 -5 -5 ------------- Run | Scr Mat Min Exi Min Mat Gar Mat Fac Gar Fac Sto Fac Fac Was Fac Turns Passed 18553 | 39 1040 1002 605 1208 2356 1190 3527 1637 588 973 2107 907 694 223 457 Spaces Moved 9424 | 22 484 551 335 627 618 405 1297 617 298 430 991 698 669 384 998 Core . | . . . . . . . . . . . . . . . . Treads 6030 | 1 484 551 335 627 289 405 1297 617 298 430 696 . . . . Legs 350 | 21 . . . . 329 . . . . . . . . . . Wheels . | . . . . . . . . . . . . . . . . Hover 1399 | . . . . . . . . . . . 295 698 406 . . Flight 1645 | . . . . . . . . . . . . . 263 384 998 Fastest Speed 34 | 120 160 180 180 180 200 210 210 190 190 190 100 100 34 34 34 Average Speed 152 | 121 176 180 180 180 218 210 210 190 190 190 165 100 67 34 34 Slowest Speed 360 | 160 180 180 180 180 310 210 210 190 190 190 260 100 360 34 34 Overloaded Moves . | . . . . . . . . . . . . . . . . Propulsion Burnouts . | . . . . . . . . . . . . . . . . Robots Hopped 10 | . . . . . . . . . . . . . . . 10 Cave-ins Triggered . | . . . . . . . . . . . . . . . . Exploration Rate (%) 57 | 4 95 99 71 100 52 62 96 16 62 13 90 20 15 96 29 Regions Visited 15 Branch Regions 4 Pre-discovered Areas 2 | . . . 1 1 . . . . . . . . . . . Known Exits Taken 6 | . . . . . 1 . 1 1 . 1 1 1 . . . Unknown Exits Taken 5 | 1 1 1 1 1 . . . . . . . . . . . Scrap Searched 4 | . . 1 . 3 . . . . . . . . . . . Spaces Dug 40 | . . . . . . . . 9 . . 4 14 5 . 8 Terrain Destroyed 143 | . . . . 22 14 . . 40 5 6 29 14 5 . 8 Melee 37 | . . . . . . . . 6 . . 4 14 5 . 8 Projectile 48 | . . . . . 12 . . . 5 6 25 . . . . AOE 58 | . . . . 22 2 . . 34 . . . . . . . Terrain Rammed . | . . . . . . . . . . . . . . . . Walls Destroyed . | . . . . . . . . . . . . . . . . Machines Disabled . | . . . . . . . . . . . . . . . . Actions | -11 -10 -10 -10 -9 -8 -8 -8 -7 -7 -7 -7 -6 -5 -5 -5 --------- Run | Scr Mat Min Exi Min Mat Gar Mat Fac Gar Fac Sto Fac Fac Was Fac Total 12794 | 27 641 562 339 674 1409 705 1987 999 321 558 1301 877 874 477 1043 Wait 2551 | . 110 11 . 16 630 254 579 302 9 94 159 140 150 84 13 Move 9389 | 21 483 550 334 626 617 403 1296 616 296 429 990 697 669 383 979 Hop 9 | . . . . . . . . . . . . . . . 9 Pick Up 91 | . 15 1 2 2 18 1 17 4 . 5 14 3 5 3 1 Fast Attach 27 | 1 . . . . 8 1 5 . . . 4 2 4 1 1 Attach 62 | . . . . 1 12 . . 11 2 7 17 6 4 . 2 Detach 38 | . . . . . 4 1 1 8 1 4 9 6 4 . . Swap 57 | 2 7 . . 1 11 1 1 10 1 5 16 1 . 1 . Drop 86 | . 9 . 3 2 2 1 24 4 . . 14 5 16 5 1 Fire 327 | 3 17 . . 15 103 21 62 38 . 14 54 . . . . Melee 106 | . . . . . . . . 6 . . 24 17 22 . 37 Ram . | . . . . . . . . . . . . . . . . Kick 2 | . . . . . 2 . . . . . . . . . . Crush 15 | . . . . 11 2 . 2 . . . . . . . . Escape Stasis 20 | . . . . . . 8 . . 12 . . . . . . Rewire 14 | . . . . . . 14 . . . . . . . . . Trap . | . . . . . . . . . . . . . . . . Miscellaneous . | . . . . . . . . . . . . . . . . Route ------- -11/Scrapyard -10/Materials (discovered 4 exits: [*Mat x3] / [*Min]) -10/Mines (discovered 3 exits: [*Mat x2] / *Exi) -10/Exiles -9/Mines (discovered 2 exits: *Mat x2) -8/Materials (discovered 3 exits: *Fac x2 / Gar) -8/Garrison (discovered 3 exits: *Mat x3) -8/Materials (discovered 3 exits: *Fac x3) -7/Factory -7/Garrison (discovered 3 exits: *Fac x3) -7/Factory -7/Storage (discovered 2 exits: *Fac / [*Rec]) -6/Factory (discovered 2 exits: *Fac / *Ext) -5/Factory -5/Waste -5/Factory History --------- Turn | Location | Event 11 | -11/Scrapyard | Discovered new exit (range 1) 40 | -11/Scrapyard | Entered Materials 307 | -10/Materials | Build established: Mutant 315 | -10/Materials | Discovered new exit (range 14) 384 | -10/Materials | Discovered new exit (range 15) 506 | -10/Materials | Discovered new exit (range 11) 584 | -10/Materials | Central database locked down 724 | -10/Materials | Discovered new exit (range 7) 1080 | -10/Materials | Entered Mines 1298 | -10/Mines | YI-UF0 nonchalantly dropped a Grenade Launcher on the ground 1344 | -10/Mines | Build established: Hauler-Mutant 1463 | -10/Mines | Discovered new exit (range 10) 1643 | -10/Mines | Learned Materials garrison access intel 1694 | -10/Mines | Deemed a non-threat by the Exiles lab entrance 1694 | -10/Mines | Discovered new exit (range 5) 1816 | -10/Mines | Assisted by bots powering up and referring to "LRC-V3" 1859 | -10/Mines | Discovered new exit (range 7) 2082 | -10/Mines | Entered Exiles 2082 | -10/Exiles | Accompanied by 3 allies 2126 | -10/Exiles | Met 8R-AWN 2156 | -10/Exiles | Met EX-HEX 2246 | -10/Exiles | Met EX-DEC 2291 | -10/Exiles | Learned location of Zion (-6) 2419 | -10/Exiles | Met EX-BIN 2441 | -10/Exiles | Aligned with FarCom system 2442 | -10/Exiles | Given EX-Vault access code 2486 | -10/Exiles | Opened EX-Vault 2503 | -10/Exiles | Found AWS/Gauss 2510 | -10/Exiles | Found Trap Reconfigurator 2550 | -10/Exiles | Warned to stay clear of 0b10 Research branches 2667 | -10/Exiles | Discovered new exit (range 12) 2687 | -10/Exiles | Stole two prototypes: AWS/Gauss, Trap Reconfigurator 2687 | -10/Exiles | Entered Mines 2687 | -9/Mines | Accompanied by 3 allies 2858 | -9/Mines | Discovered new exit (range 8) 3023 | -9/Mines | Found a hidden stash of uninstalled traps 3176 | -9/Mines | Discovered new exit (range 7) 3211 | -9/Mines | Learned location of Storage (-7) 3462 | -9/Mines | Received a Rocket Launcher from a helpful Derelict 3895 | -9/Mines | Entered Materials 3895 | -8/Materials | Evolved 4 slots: Propulsion x1, Utility x3 3896 | -8/Materials | Identified exit to Factory 3897 | -8/Materials | Loaded intel: 1 garrison access location 4538 | -8/Materials | Lost 3 parts (1p2w) 4834 | -8/Materials | Lost 4 parts (2n2w) 4937 | -8/Materials | Lost 3 parts (1p1n1w) 6049 | -8/Materials | Discovered exit to Factory (range 13) 6215 | -8/Materials | Central database locked down 6248 | -8/Materials | Identified exit to Garrison 6251 | -8/Materials | Entered Garrison 6530 | -8/Garrison | Triggered checkpoint 6573 | -8/Garrison | Destroyed 7 combat bots 6776 | -8/Garrison | Triggered checkpoint 6868 | -8/Garrison | Discovered new exit (range 10) 7070 | -8/Garrison | Discovered new exit (range 11) 7395 | -8/Garrison | Discovered new exit (range 12) 7430 | -8/Garrison | Installed Relay Interface Framework 7441 | -8/Garrison | Entered Materials 7441 | -8/Materials | Accompanied by 3 allies 8669 | -8/Materials | Discovered exit to Factory (range 8) 9538 | -8/Materials | Discovered exit to Factory (range 14) 9741 | -8/Materials | Repaired Arm. Treads 9775 | -8/Materials | Repaired Mni. Grenade Launcher 10253 | -8/Materials | Discovered exit to Factory (range 9) 10968 | -8/Materials | Entered Factory 10968 | -7/Factory | Evolved 2 slots: Propulsion x1, Utility x1 10970 | -7/Factory | FarCom data flow suspended 11663 | -7/Factory | Local fabrication network quarantined 11686 | -7/Factory | Fabricated Adv. Sensor Array (x1) 12594 | -7/Factory | Identified exit to Garrison 12605 | -7/Factory | Entered Garrison 12696 | -7/Garrison | Triggered checkpoint 12702 | -7/Garrison | Triggered checkpoint 12722 | -7/Garrison | Triggered checkpoint 12761 | -7/Garrison | Destroyed 10 combat bots 12815 | -7/Garrison | Discovered new exit (range 14) 12837 | -7/Garrison | Identified exit to Factory 12988 | -7/Garrison | Discovered exit to Factory (range 13) 13159 | -7/Garrison | Discovered exit to Factory (range 8) 13183 | -7/Garrison | Expanded RIF knowledge: Hotswap 13193 | -7/Garrison | Entered Factory 14055 | -7/Factory | Discovered new exit (range 15) 14134 | -7/Factory | Identified exit to Storage 14166 | -7/Factory | Entered Storage 15503 | -7/Storage | Used back door to open Recycling access 15503 | -7/Storage | Discovered new exit (range 4) 16252 | -7/Storage | Discovered new exit (range 16) 16272 | -7/Storage | Identified exit to Factory 16273 | -7/Storage | Entered Factory 16273 | -6/Factory | Evolved 2 slots: Propulsion x1, Utility x1 16738 | -6/Factory | Discovered new exit (range 13) 16749 | -6/Factory | Identified exit to Extension 16812 | -6/Factory | Repaired Mic. Nuclear Core 17048 | -6/Factory | Discovered new exit (range 4) 17050 | -6/Factory | Identified exit to Factory 17180 | -6/Factory | Entered another Factory area 17180 | -5/Factory | Evolved 2 slots: Power x1, Propulsion x1 17874 | -5/Factory | Sucked down chute 17874 | -5/Factory | Entered Waste 17887 | -5/Waste | Warlord forces began an assault 17908 | -5/Waste | Spotted C-40 Crusher 17913 | -5/Waste | Allies destroyed C-40 Crusher 17923 | -5/Waste | Spotted C-40 Crusher 17928 | -5/Waste | Build established: Hacker-Mutant 17952 | -5/Waste | Allies destroyed C-40 Crusher 17954 | -5/Waste | Spotted C-40 Crusher 17958 | -5/Waste | Spotted C-40 Crusher 17962 | -5/Waste | Allies destroyed C-40 Crusher 17966 | -5/Waste | Allies destroyed C-40 Crusher 17975 | -5/Waste | Found Damper Plating 18011 | -5/Waste | Spotted C-40 Crusher 18013 | -5/Waste | Allies destroyed C-40 Crusher 18017 | -5/Waste | Spotted C-40 Crusher 18022 | -5/Waste | Allies destroyed C-40 Crusher 18028 | -5/Waste | Found Damper Plating 18038 | -5/Waste | Discovered new exit (range 13) 18043 | -5/Waste | Identified exit to Factory 18097 | -5/Waste | Entered Factory 18097 | -5/Factory | Accompanied by 1 ally 18506 | -5/Factory | Fabricated Lrn. Sensor Array? 18525 | -5/Factory | Lost 4 parts (1p1n2u) 18554 | -5/Factory | Self-destructed Last Messages --------------- 18485_ Slug penetrates Wall. 18486_ Destroyed VTOL Module. 18488_ R-10 Processor collects Wheel. 18489_ W-25 Informer sends out distress signal. 18489_ Slug penetrates Wall. 18489_ K-01 Serf collects debris. 18492_ Slug penetrates K-01 Serf. 18492_ K-01 Serf destroyed. 18494_ Slug penetrates Nuclear Reactor. 18494_ Nuclear Pulse Array destroyed. 18494_ Slug penetrates Nuclear Reactor. 18495_ Slug penetrates Wall. 18506_ >> FABRICATOR: Completed Lrn. Sensor Array? 18543_ System corrupted: Matter fused (-7). 18554_ Triggered Fusion Bomb Trap. 18554_ An explosion rips through the floor. 18554_ Lyr. Light Armor Plating destroyed. 18554_ Imp. Sensor Array destroyed. 18554_ Nuclear Pulse Array destroyed. 18554_ Megafabricator disabled. Map ----- +----------------------------------------------------+ | | | | | | | | | | | | | | | | | | | | | | | | | ??????????????????????????????????????????????? | | ??????????????????????????????????????????????? | | ??????????????????????????????????????????????? | | ??????????????????????????????????????????????? | | ??????????????????????????????????????????????? | | ??????????????????????????????????????????????? | | ??????????????????????????????????????????????? | | ??????????????????????????????????????????????? | | ??????????????????????????????????????????????? | | ??????#######?????#########???????????????????? | | ??? ? #????## ##??????????????????? | | ????" "" ###### ########???????????? | | ???"" "" # ????????? | | ???""" """ # @ ????????? | | ?? """ """ # u ????????? | | # """ """ # """" ????????? | | # + """ ?????????? | | # "" "" # " " """????????????????? | | ?? "" "" # """""""""????????????????? | | ???""" """ # """""""""????????????????? | | ???""" """ ####### """""""""????????????????? | | ? """ """ #?????# ???????????????????? | | # #?????# """"?????????????????????? | | ??##+######+###### """"?????????????????????? | | ??????????# """??????????????????????? | | ???#??????# """??????????????????????? | | ???# ###### """??????????????????????? | | ???# """??????????????????????? | | ?????## ! ???????????????????? | | ??????# """ """ """""????????????????????? | | ??????# """ """ ""???????????????????????? | | ??????# """ """ ""???????????????????????? | | ??????# ""???????????????????????? | | ??????# ] """"?????????????????????? | | ??????# """"""""?????????????????? | | ??????# "F"" ?????????????????? | | ??????# """" ""?????????????????? | | ??????# ""?????????????????? | +----------------------------------------------------+ Best States ------------- Heat Dissipation 40 Energy Generation 28 Energy Capacity 275 Matter Stores 300 Matter Capacity 300 Sight Range 16 Robot Scan Range 16 Terrain Scan Density 10 Jamming Range 12 EM Shielding 2 Armor Coverage 225 Propulsion Shielding 66 Evasion (%) 63 Targeting Accuracy 8 Recoil Reduction 4 Offensive Hacking 20 Defensive Hacking 10 Item Schematics ----------------- Katana | -8/Materials | Scanalyzed Arm. Treads | -8/Materials | Scanalyzed Adv. Signal Interpreter | -8/Materials | Scanalyzed Lrg. Storage Unit | -8/Materials | Scanalyzed Adv. Sensor Array | -8/Materials | Hacked Hacking Suite | -8/Materials | Scanalyzed Lrn. Sensor Array | -7/Storage | Hacked Robot Schematics ------------------ None Fabricated ------------ Adv. Sensor Array | x1 | -7/Factory Lrn. Sensor Array | x1 | -5/Factory Alien Tech Used ----------------- None Achievements -------------- None Challenges ------------ None Game ------ Seed FluxResetThrusters Manual? 0 Play Time 01:52:22 Cumulative 152.0 hours Start 2020.12.13 @ 21:16:07 End 2020.12.14 @ 22:09:51 Sessions 5 Manual Loads 0 Difficulty Rogue Special Mode Halloween2020/ForbiddenLore Game No. 113 Rogue 113 Adventurer 0 Explorer 0 Win Type - Total 3 Types 3/0/0/0/0/0/0/0/0 Lore% 44 Gallery% 57 Achievement% 44 Wizard Run 0 Options --------- ASCII 1 Keyboard 1 Movement Arrows Keybinds 0 Fullscreen 1 Font 24/Proggy Map View 76x50 Tactical HUD 1 Map Filters NONE Filters NONE Steam 1 RUN: 4e4174c2-49d3-41a3-9ef3-c3c0202d6749